[Event "Titled Tuesday Blitz August 08 Early 2023"]
[White "Tosic, Srecko"]
[Black "Rottenwohrer Suarez, Juan"]
[WhiteFideId "924563"]
[BlackFideId "32068182"]
[WhiteElo "2312"]
[BlackElo "2470"]
[Result "0-1"]
[Round "9"]
[TimeControl "180+1"]
[Date "2023.08.08"]
[WhiteClock "0:00:13"]
[BlackClock "0:00:13"]
[Board "141"]

1. e4 {[%clk 0:03:00]}  c5 {[%clk 0:02:53]} 2. Nf3 {[%clk 0:03:00]}  g6 {[%clk 0:02:52]} 3. d4 {[%clk 0:03:00]}  cxd4 {[%clk 0:02:53]} 4. Nxd4 {[%clk 0:03:01]}  Nc6 {[%clk 0:02:54]} 5. Nc3 {[%clk 0:03:00]}  Bg7 {[%clk 0:02:54]} 6. Nde2 {[%clk 0:03:01]}  Nf6 {[%clk 0:02:52]} 7. g3 {[%clk 0:03:02]}  b5 {[%clk 0:02:53]} 8. Bg2 {[%clk 0:03:02]}  b4 {[%clk 0:02:53]} 9. Nd5 {[%clk 0:03:02]}  O-O {[%clk 0:02:53]} 10. O-O {[%clk 0:03:02]}  a5 {[%clk 0:02:54]} 11. a3 {[%clk 0:03:00]}  Bb7 {[%clk 0:02:53]} 12. Re1 {[%clk 0:02:57]}  d6 {[%clk 0:02:53]} 13. axb4 {[%clk 0:02:45]}  axb4 {[%clk 0:02:53]} 14. Rxa8 {[%clk 0:02:45]}  Qxa8 {[%clk 0:02:54]} 15. Nef4 {[%clk 0:02:35]}  Rd8 {[%clk 0:02:53]} 16. Nxf6+ {[%clk 0:02:29]}  Bxf6 {[%clk 0:02:53]} 17. Nd5 {[%clk 0:02:29]}  Bg7 {[%clk 0:02:53]} 18. b3 {[%clk 0:02:25]}  e6 {[%clk 0:02:53]} 19. Nb6 {[%clk 0:02:21]}  Qa6 {[%clk 0:02:52]} 20. Nc4 {[%clk 0:02:19]}  Nd4 {[%clk 0:02:49]} 21. Be3 {[%clk 0:02:11]}  Nb5 {[%clk 0:02:48]} 22. Qd3 {[%clk 0:01:56]}  Nc3 {[%clk 0:02:48]} 23. Qf1 {[%clk 0:01:40]}  h5 {[%clk 0:02:40]} 24. h4 {[%clk 0:01:39]}  Qa2 {[%clk 0:02:21]} 25. Bg5 {[%clk 0:01:25]}  f6 {[%clk 0:02:15]} 26. Bf4 {[%clk 0:01:25]}  e5 {[%clk 0:02:13]} 27. Ra1 {[%clk 0:01:09]}  Qxc2 {[%clk 0:02:10]} 28. Ra7 {[%clk 0:01:06]}  Bxe4 {[%clk 0:02:06]} 29. Bxe4 {[%clk 0:00:57]}  Qxe4 {[%clk 0:01:58]} 30. Be3 {[%clk 0:00:55]}  d5 {[%clk 0:01:51]} 31. Bb6 {[%clk 0:00:52]}  Rb8 {[%clk 0:01:18]} 32. Nd6 {[%clk 0:00:52]}  Qf3 {[%clk 0:01:16]} 33. Bc7 {[%clk 0:00:52]}  Rf8 {[%clk 0:01:13]} 34. Ba5 {[%clk 0:00:47]}  Ne2+ {[%clk 0:01:00]} 35. Kh2 {[%clk 0:00:46]}  Nxg3 {[%clk 0:00:57]} 36. Qg2 {[%clk 0:00:44]}  Qxg2+ {[%clk 0:00:44]} 37. Kxg2 {[%clk 0:00:45]}  Ne2 {[%clk 0:00:45]} 38. Bxb4 {[%clk 0:00:42]}  Rb8 {[%clk 0:00:46]} 39. Rb7 {[%clk 0:00:37]}  Rxb7 {[%clk 0:00:40]} 40. Nxb7 {[%clk 0:00:38]}  Nd4 {[%clk 0:00:40]} 41. Na5 {[%clk 0:00:37]}  Bf8 {[%clk 0:00:24]} 42. Bc3 {[%clk 0:00:34]}  Ne2 {[%clk 0:00:21]} 43. Bd2 {[%clk 0:00:33]}  Nd4 {[%clk 0:00:09]} 44. Bc3 {[%clk 0:00:29]}  Nf5 {[%clk 0:00:09]} 45. Kh3 {[%clk 0:00:27]}  Kf7 {[%clk 0:00:10]} 46. b4 {[%clk 0:00:24]}  Ke6 {[%clk 0:00:11]} 47. b5 {[%clk 0:00:24]}  d4 {[%clk 0:00:11]} 48. Bd2 {[%clk 0:00:20]}  e4 {[%clk 0:00:09]} 49. b6 {[%clk 0:00:19]}  e3 {[%clk 0:00:09]} 50. fxe3 {[%clk 0:00:18]}  dxe3 {[%clk 0:00:10]} 51. Bc3 {[%clk 0:00:18]}  Bd6 {[%clk 0:00:09]} 52. Nc4 {[%clk 0:00:14]}  Bb8 {[%clk 0:00:05]} 53. Kg2 {[%clk 0:00:13]}  Nxh4+ {[%clk 0:00:05]} 54. Kh3 {[%clk 0:00:13]}  Nf5 {[%clk 0:00:03]} 55. Kg2 {[%clk 0:00:14]}  Nh4+ {[%clk 0:00:03]} 56. Kf1 {[%clk 0:00:13]}  Nf3 {[%clk 0:00:03]} 57. Ke2 {[%clk 0:00:14]}  Ng5 {[%clk 0:00:03]} 58. Kxe3 {[%clk 0:00:14]}  h4 {[%clk 0:00:04]} 59. Kf2 {[%clk 0:00:12]}  Ne4+ {[%clk 0:00:03]} 60. Kg2 {[%clk 0:00:10]}  Nxc3 {[%clk 0:00:04]} 61. Kh3 {[%clk 0:00:11]}  Kd5 {[%clk 0:00:04]} 62. Kxh4 {[%clk 0:00:11]}  Kxc4 {[%clk 0:00:04]} 63. b7 {[%clk 0:00:12]}  Kc5 {[%clk 0:00:04]} 64. Kg4 {[%clk 0:00:12]}  Kb6 {[%clk 0:00:04]} 65. Kf3 {[%clk 0:00:13]}  Kxb7 {[%clk 0:00:05]} 66. Ke3 {[%clk 0:00:13]}  Kc6 {[%clk 0:00:06]} 67. Kd4 {[%clk 0:00:14]}  Kd6 {[%clk 0:00:07]} 68. Kxc3 {[%clk 0:00:14]}  Ke6 {[%clk 0:00:08]} 69. Kd3 {[%clk 0:00:15]}  Kf5 {[%clk 0:00:09]} 70. Ke2 {[%clk 0:00:16]}  Kg4 {[%clk 0:00:10]} 71. Kf2 {[%clk 0:00:17]}  f5 {[%clk 0:00:11]} 72. Kg2 {[%clk 0:00:18]}  g5 {[%clk 0:00:12]} 73. Kf2 {[%clk 0:00:18]}  f4 {[%clk 0:00:12]} 74. Kg2 {[%clk 0:00:13]}  Bc7 {[%clk 0:00:13]} 0-1


[Site "https://www.chess.com"]

[Event "Titled Tuesday Blitz August 08 Early 2023"]
[White "Gavilan Diaz, Mario"]
[Black "Iunusovnuriddin"]
[WhiteFideId "2260905"]
[WhiteElo "2465"]
[BlackElo "2310"]
[Result "1-0"]
[Round "9"]
[TimeControl "180+1"]
[Date "2023.08.08"]
[WhiteClock "0:00:11"]
[BlackClock "0:00:06"]
[Board "142"]

1. d4 {[%clk 0:02:54]}  Nf6 {[%clk 0:02:59]} 2. c4 {[%clk 0:02:54]}  g6 {[%clk 0:02:59]} 3. Nc3 {[%clk 0:02:54]}  Bg7 {[%clk 0:02:57]} 4. e4 {[%clk 0:02:54]}  d6 {[%clk 0:02:56]} 5. Be2 {[%clk 0:02:54]}  O-O {[%clk 0:02:55]} 6. Be3 {[%clk 0:02:55]}  e5 {[%clk 0:02:52]} 7. d5 {[%clk 0:02:55]}  Nbd7 {[%clk 0:02:48]} 8. g4 {[%clk 0:02:55]}  Nc5 {[%clk 0:02:41]} 9. Bf3 {[%clk 0:02:55]}  a5 {[%clk 0:02:11]} 10. g5 {[%clk 0:02:55]}  Nfd7 {[%clk 0:02:10]} 11. h4 {[%clk 0:02:55]}  f6 {[%clk 0:02:07]} 12. gxf6 {[%clk 0:02:53]}  Nxf6 {[%clk 0:01:57]} 13. Qe2 {[%clk 0:02:42]}  c6 {[%clk 0:01:26]} 14. O-O-O {[%clk 0:02:21]}  Qb6 {[%clk 0:01:13]} 15. Na4 {[%clk 0:02:04]}  Qb4 {[%clk 0:01:12]} 16. Nxc5 {[%clk 0:02:03]}  dxc5 {[%clk 0:01:13]} 17. a3 {[%clk 0:01:42]}  Qb3 {[%clk 0:01:02]} 18. Kb1 {[%clk 0:01:34]}  cxd5 {[%clk 0:00:48]} 19. cxd5 {[%clk 0:01:28]}  Bd7 {[%clk 0:00:48]} 20. Bxc5 {[%clk 0:01:18]}  Rfc8 {[%clk 0:00:47]} 21. Qe3 {[%clk 0:00:52]}  Qxe3 {[%clk 0:00:29]} 22. Bxe3 {[%clk 0:00:51]}  Rc4 {[%clk 0:00:30]} 23. Rc1 {[%clk 0:00:34]}  Rac8 {[%clk 0:00:27]} 24. Ne2 {[%clk 0:00:30]}  Nxe4 {[%clk 0:00:24]} 25. Bxe4 {[%clk 0:00:21]}  Rxe4 {[%clk 0:00:23]} 26. Rxc8+ {[%clk 0:00:21]}  Bxc8 {[%clk 0:00:23]} 27. Rc1 {[%clk 0:00:20]}  Bf5 {[%clk 0:00:23]} 28. Ng3 {[%clk 0:00:19]}  Rc4+ {[%clk 0:00:13]} 29. Nxf5 {[%clk 0:00:19]}  Rxc1+ {[%clk 0:00:14]} 30. Kxc1 {[%clk 0:00:18]}  gxf5 {[%clk 0:00:15]} 31. Kd2 {[%clk 0:00:16]}  Kf7 {[%clk 0:00:15]} 32. Bb6 {[%clk 0:00:16]}  Ke7 {[%clk 0:00:14]} 33. Bxa5 {[%clk 0:00:16]}  Kd6 {[%clk 0:00:15]} 34. Bc3 {[%clk 0:00:13]}  Kxd5 {[%clk 0:00:15]} 35. f4 {[%clk 0:00:13]}  h5 {[%clk 0:00:09]} 36. a4 {[%clk 0:00:13]}  Ke4 {[%clk 0:00:09]} 37. fxe5 {[%clk 0:00:11]}  Bxe5 {[%clk 0:00:09]} 38. Bxe5 {[%clk 0:00:11]}  Kxe5 {[%clk 0:00:10]} 39. Ke3 {[%clk 0:00:10]}  Kd5 {[%clk 0:00:06]} 40. Kf4 {[%clk 0:00:10]}  Kc4 {[%clk 0:00:06]} 41. Kxf5 {[%clk 0:00:10]}  Kb3 {[%clk 0:00:07]} 42. Kg5 {[%clk 0:00:10]}  Kxb2 {[%clk 0:00:07]} 43. Kxh5 {[%clk 0:00:10]}  Kb3 {[%clk 0:00:07]} 44. a5 {[%clk 0:00:09]}  Kb4 {[%clk 0:00:07]} 45. Kg6 {[%clk 0:00:08]}  Kxa5 {[%clk 0:00:08]} 46. h5 {[%clk 0:00:09]}  b5 {[%clk 0:00:08]} 47. h6 {[%clk 0:00:10]}  b4 {[%clk 0:00:06]} 48. h7 {[%clk 0:00:11]} 1-0


[Site "https://www.chess.com"]

[Event "Titled Tuesday Blitz August 08 Early 2023"]
[White "Novikov, Evgenij"]
[Black "Mikhaylova, Irina"]
[WhiteFideId "4125380"]
[BlackFideId "4109040"]
[WhiteElo "2429"]
[BlackElo "2270"]
[Result "1/2-1/2"]
[Round "9"]
[TimeControl "180+1"]
[Date "2023.08.08"]
[WhiteClock "0:00:12"]
[BlackClock "0:00:13"]
[Board "147"]

1. d4 {[%clk 0:03:00]}  Nf6 {[%clk 0:02:59]} 2. c4 {[%clk 0:03:00]}  g6 {[%clk 0:03:00]} 3. Nc3 {[%clk 0:02:59]}  d5 {[%clk 0:03:00]} 4. Nf3 {[%clk 0:02:50]}  Bg7 {[%clk 0:03:00]} 5. Bg5 {[%clk 0:02:49]}  dxc4 {[%clk 0:02:58]} 6. e3 {[%clk 0:02:41]}  Be6 {[%clk 0:02:58]} 7. Ne5 {[%clk 0:02:16]}  c5 {[%clk 0:02:49]} 8. dxc5 {[%clk 0:02:07]}  Qa5 {[%clk 0:02:41]} 9. Nxc4 {[%clk 0:01:23]}  Qxc5 {[%clk 0:02:26]} 10. Qa4+ {[%clk 0:01:22]}  Nc6 {[%clk 0:01:08]} 11. Bxf6 {[%clk 0:01:18]}  Bxf6 {[%clk 0:00:51]} 12. Ne4 {[%clk 0:01:17]}  Qb4+ {[%clk 0:00:38]} 13. Qxb4 {[%clk 0:01:16]}  Nxb4 {[%clk 0:00:38]} 14. Nxf6+ {[%clk 0:01:16]}  exf6 {[%clk 0:00:39]} 15. Rc1 {[%clk 0:00:51]}  Ke7 {[%clk 0:00:37]} 16. a3 {[%clk 0:00:49]}  Nc6 {[%clk 0:00:26]} 17. Be2 {[%clk 0:00:48]}  Ne5 {[%clk 0:00:22]} 18. O-O {[%clk 0:00:35]}  Rac8 {[%clk 0:00:22]} 19. Nxe5 {[%clk 0:00:26]}  fxe5 {[%clk 0:00:22]} 20. Bf3 {[%clk 0:00:22]}  b6 {[%clk 0:00:21]} 21. Rfd1 {[%clk 0:00:22]}  Rxc1 {[%clk 0:00:19]} 22. Rxc1 {[%clk 0:00:21]}  Rc8 {[%clk 0:00:20]} 23. Rxc8 {[%clk 0:00:21]}  Bxc8 {[%clk 0:00:20]} 24. Kf1 {[%clk 0:00:21]}  Kd6 {[%clk 0:00:18]} 25. Ke1 {[%clk 0:00:21]}  Kc5 {[%clk 0:00:14]} 26. Kd2 {[%clk 0:00:22]}  a5 {[%clk 0:00:14]} 27. Kc3 {[%clk 0:00:21]}  Be6 {[%clk 0:00:12]} 28. b4+ {[%clk 0:00:21]}  axb4+ {[%clk 0:00:13]} 29. axb4+ {[%clk 0:00:22]}  Kd6 {[%clk 0:00:13]} 30. h4 {[%clk 0:00:19]}  h6 {[%clk 0:00:13]} 31. Be2 {[%clk 0:00:18]}  g5 {[%clk 0:00:13]} 32. hxg5 {[%clk 0:00:17]}  hxg5 {[%clk 0:00:13]} 33. g3 {[%clk 0:00:18]}  Bd5 {[%clk 0:00:13]} 34. Bd3 {[%clk 0:00:15]}  f6 {[%clk 0:00:13]} 35. Bf5 {[%clk 0:00:14]}  Bf3 {[%clk 0:00:12]} 36. Bd3 {[%clk 0:00:13]}  Bc6 {[%clk 0:00:12]} 37. Bc4 {[%clk 0:00:13]}  Bd7 {[%clk 0:00:12]} 38. Bd3 {[%clk 0:00:13]}  Bc6 {[%clk 0:00:13]} 39. Bc4 {[%clk 0:00:12]}  Bd7 {[%clk 0:00:13]} 40. Bd3 {[%clk 0:00:12]}  Bc6 {[%clk 0:00:13]} 1/2-1/2


[Site "https://www.chess.com"]

[Event "Titled Tuesday Blitz August 08 Early 2023"]
[White "Rios Escobar, Adan"]
[Black "Cagara, Paulina"]
[WhiteFideId "3403645"]
[BlackFideId "1124870"]
[WhiteElo "2423"]
[BlackElo "2266"]
[Result "0-1"]
[Round "9"]
[TimeControl "180+1"]
[Date "2023.08.08"]
[WhiteClock "0:00:00"]
[BlackClock "0:00:24"]
[Board "148"]

1. d4 {[%clk 0:02:57]}  f5 {[%clk 0:02:58]} 2. g3 {[%clk 0:02:57]}  g6 {[%clk 0:02:55]} 3. Bg2 {[%clk 0:02:57]}  Bg7 {[%clk 0:02:55]} 4. Nf3 {[%clk 0:02:58]}  Nf6 {[%clk 0:02:54]} 5. O-O {[%clk 0:02:58]}  O-O {[%clk 0:02:54]} 6. b3 {[%clk 0:02:59]}  d6 {[%clk 0:02:54]} 7. Bb2 {[%clk 0:03:00]}  Nc6 {[%clk 0:02:51]} 8. c4 {[%clk 0:02:49]}  Qe8 {[%clk 0:02:51]} 9. Nc3 {[%clk 0:02:46]}  e5 {[%clk 0:02:50]} 10. Nd5 {[%clk 0:02:42]}  Nxd5 {[%clk 0:02:37]} 11. cxd5 {[%clk 0:02:43]}  Nb4 {[%clk 0:02:35]} 12. dxe5 {[%clk 0:02:39]}  dxe5 {[%clk 0:02:35]} 13. a3 {[%clk 0:02:38]}  Na6 {[%clk 0:02:35]} 14. b4 {[%clk 0:02:30]}  Bd7 {[%clk 0:02:21]} 15. Ng5 {[%clk 0:02:23]}  Qe7 {[%clk 0:02:07]} 16. h4 {[%clk 0:02:12]}  f4 {[%clk 0:02:02]} 17. Ne6 {[%clk 0:02:01]}  Bxe6 {[%clk 0:02:00]} 18. dxe6 {[%clk 0:02:02]}  c6 {[%clk 0:01:53]} 19. Qd7 {[%clk 0:01:55]}  Rae8 {[%clk 0:01:52]} 20. Qxe7 {[%clk 0:01:32]}  Rxe7 {[%clk 0:01:51]} 21. Bh3 {[%clk 0:01:33]}  Nc7 {[%clk 0:01:48]} 22. Rad1 {[%clk 0:01:29]}  Nxe6 {[%clk 0:01:46]} 23. a4 {[%clk 0:01:21]}  Nd4 {[%clk 0:01:37]} 24. b5 {[%clk 0:00:53]}  Nxe2+ {[%clk 0:01:36]} 25. Kg2 {[%clk 0:00:52]}  e4 {[%clk 0:01:22]} 26. Ba3 {[%clk 0:00:50]}  Rfe8 {[%clk 0:01:05]} 27. Bxe7 {[%clk 0:00:50]}  Rxe7 {[%clk 0:01:05]} 28. Rd7 {[%clk 0:00:43]}  Rxd7 {[%clk 0:01:01]} 29. Bxd7 {[%clk 0:00:44]}  cxb5 {[%clk 0:01:01]} 30. axb5 {[%clk 0:00:40]}  Be5 {[%clk 0:00:55]} 31. gxf4 {[%clk 0:00:20]}  Nxf4+ {[%clk 0:00:54]} 32. Kh1 {[%clk 0:00:15]}  Nd3 {[%clk 0:00:45]} 33. Bc8 {[%clk 0:00:13]}  b6 {[%clk 0:00:45]} 34. Bb7 {[%clk 0:00:11]}  Bd4 {[%clk 0:00:42]} 35. Kg2 {[%clk 0:00:10]}  Nf4+ {[%clk 0:00:40]} 36. Kg3 {[%clk 0:00:09]}  Ne2+ {[%clk 0:00:39]} 37. Kg4 {[%clk 0:00:09]}  Nc3 {[%clk 0:00:38]} 38. Bc6 {[%clk 0:00:07]}  Kg7 {[%clk 0:00:35]} 39. h5 {[%clk 0:00:07]}  gxh5+ {[%clk 0:00:35]} 40. Kxh5 {[%clk 0:00:08]}  Ne2 {[%clk 0:00:31]} 41. Kg4 {[%clk 0:00:07]}  Nc3 {[%clk 0:00:29]} 42. Kf4 {[%clk 0:00:03]}  Kf6 {[%clk 0:00:28]} 43. Rh1 {[%clk 0:00:02]}  Bxf2 {[%clk 0:00:25]} 44. Rxh7 {[%clk 0:00:02]}  e3 {[%clk 0:00:25]} 45. Rxa7 {[%clk 0:00:02]}  e2 {[%clk 0:00:25]} 46. Ra1 {[%clk 0:00:00]}  Nd1 {[%clk 0:00:24]} 0-1


[Site "https://www.chess.com"]

[Event "Titled Tuesday Blitz August 08 Early 2023"]
[White "Kazakov, Mikhail"]
[Black "Luxama, Jacques Muller"]
[WhiteFideId "14102749"]
[BlackFideId "11900113"]
[WhiteElo "2402"]
[BlackElo "2222"]
[Result "1/2-1/2"]
[Round "9"]
[TimeControl "180+1"]
[Date "2023.08.08"]
[WhiteClock "0:00:08"]
[BlackClock "0:01:24"]
[Board "152"]

1. d4 {[%clk 0:02:30]}  Nf6 {[%clk 0:02:59]} 2. c4 {[%clk 0:02:29]}  e6 {[%clk 0:02:59]} 3. Nf3 {[%clk 0:02:26]}  d5 {[%clk 0:02:59]} 4. g3 {[%clk 0:02:26]}  Bb4+ {[%clk 0:02:58]} 5. Bd2 {[%clk 0:02:24]}  a5 {[%clk 0:02:57]} 6. Bg2 {[%clk 0:02:23]}  O-O {[%clk 0:02:56]} 7. O-O {[%clk 0:02:22]}  dxc4 {[%clk 0:02:56]} 8. Bg5 {[%clk 0:02:19]}  Be7 {[%clk 0:02:53]} 9. Ne5 {[%clk 0:02:05]}  h6 {[%clk 0:02:51]} 10. Bf4 {[%clk 0:01:56]}  Nd5 {[%clk 0:02:42]} 11. Nxc4 {[%clk 0:01:51]}  Nxf4 {[%clk 0:02:42]} 12. gxf4 {[%clk 0:01:52]}  c5 {[%clk 0:02:38]} 13. dxc5 {[%clk 0:01:46]}  Bxc5 {[%clk 0:02:38]} 14. Qxd8 {[%clk 0:01:43]}  Rxd8 {[%clk 0:02:37]} 15. Nc3 {[%clk 0:01:43]}  Nc6 {[%clk 0:02:36]} 16. Rad1 {[%clk 0:01:33]}  Bd7 {[%clk 0:02:35]} 17. Na4 {[%clk 0:01:25]}  Nd4 {[%clk 0:02:13]} 18. Nxc5 {[%clk 0:01:15]}  Nxe2+ {[%clk 0:02:07]} 19. Kh1 {[%clk 0:01:14]}  Bc6 {[%clk 0:02:06]} 20. Bxc6 {[%clk 0:01:09]}  bxc6 {[%clk 0:02:07]} 21. f5 {[%clk 0:01:06]}  exf5 {[%clk 0:02:06]} 22. Kg2 {[%clk 0:00:51]}  Nf4+ {[%clk 0:02:04]} 23. Kf3 {[%clk 0:00:48]}  Ng6 {[%clk 0:02:02]} 24. Rxd8+ {[%clk 0:00:39]}  Rxd8 {[%clk 0:02:02]} 25. Nxa5 {[%clk 0:00:39]}  Rd5 {[%clk 0:01:57]} 26. b4 {[%clk 0:00:35]}  Ne5+ {[%clk 0:01:57]} 27. Ke2 {[%clk 0:00:32]}  Rd4 {[%clk 0:01:50]} 28. a3 {[%clk 0:00:29]}  f4 {[%clk 0:01:46]} 29. f3 {[%clk 0:00:26]}  g5 {[%clk 0:01:35]} 30. Rd1 {[%clk 0:00:23]}  Rxd1 {[%clk 0:01:35]} 31. Kxd1 {[%clk 0:00:24]}  Nxf3 {[%clk 0:01:35]} 32. Nxc6 {[%clk 0:00:23]}  Nxh2 {[%clk 0:01:35]} 33. a4 {[%clk 0:00:22]}  f3 {[%clk 0:01:32]} 34. Nd3 {[%clk 0:00:18]}  g4 {[%clk 0:01:31]} 35. Nce5 {[%clk 0:00:16]}  g3 {[%clk 0:01:29]} 36. Nxf3 {[%clk 0:00:13]}  Nxf3 {[%clk 0:01:29]} 37. Nf4 {[%clk 0:00:14]}  h5 {[%clk 0:01:27]} 38. a5 {[%clk 0:00:13]}  Nd4 {[%clk 0:01:27]} 39. a6 {[%clk 0:00:12]}  Nb5 {[%clk 0:01:24]} 40. Ke2 {[%clk 0:00:12]}  h4 {[%clk 0:01:24]} 41. Kf3 {[%clk 0:00:12]}  Kg7 {[%clk 0:01:24]} 42. Kg4 {[%clk 0:00:12]}  f5+ {[%clk 0:01:23]} 43. Kxh4 {[%clk 0:00:12]}  Kf6 {[%clk 0:01:24]} 44. Kxg3 {[%clk 0:00:10]}  Ke5 {[%clk 0:01:24]} 45. Nd3+ {[%clk 0:00:09]}  Kd4 {[%clk 0:01:24]} 46. Kf4 {[%clk 0:00:07]}  Kxd3 {[%clk 0:01:23]} 47. Kxf5 {[%clk 0:00:08]}  Kc4 {[%clk 0:01:24]} 48. Ke5 {[%clk 0:00:09]}  Kxb4 {[%clk 0:01:24]} 49. a7 {[%clk 0:00:08]}  Nxa7 {[%clk 0:01:24]} 1/2-1/2


[Site "https://www.chess.com"]

[Event "Titled Tuesday Blitz August 08 Early 2023"]
[White "LionKing2367890"]
[Black "Avazkhonov, Alikhon"]
[BlackFideId "14208504"]
[WhiteElo "2219"]
[BlackElo "2400"]
[Result "0-1"]
[Round "9"]
[TimeControl "180+1"]
[Date "2023.08.08"]
[WhiteClock "0:00:01"]
[BlackClock "0:00:02"]
[Board "153"]

1. e4 {[%clk 0:02:55]}  c5 {[%clk 0:03:00]} 2. Nf3 {[%clk 0:02:53]}  d6 {[%clk 0:03:00]} 3. d4 {[%clk 0:02:54]}  cxd4 {[%clk 0:03:01]} 4. Nxd4 {[%clk 0:02:55]}  Nf6 {[%clk 0:03:01]} 5. f3 {[%clk 0:02:55]}  a6 {[%clk 0:03:02]} 6. c4 {[%clk 0:02:55]}  g6 {[%clk 0:03:00]} 7. Nc3 {[%clk 0:02:55]}  Bg7 {[%clk 0:03:00]} 8. Be3 {[%clk 0:02:55]}  O-O {[%clk 0:03:01]} 9. Be2 {[%clk 0:02:55]}  Bd7 {[%clk 0:03:01]} 10. O-O {[%clk 0:02:56]}  Nc6 {[%clk 0:03:02]} 11. Qd2 {[%clk 0:02:56]}  Rc8 {[%clk 0:03:01]} 12. Rac1 {[%clk 0:02:55]}  Nxd4 {[%clk 0:02:40]} 13. Bxd4 {[%clk 0:02:55]}  Bc6 {[%clk 0:02:39]} 14. Rfd1 {[%clk 0:02:55]}  Kh8 {[%clk 0:02:35]} 15. Nd5 {[%clk 0:02:55]}  Nxd5 {[%clk 0:02:32]} 16. cxd5 {[%clk 0:02:55]}  Bd7 {[%clk 0:02:28]} 17. Bxg7+ {[%clk 0:02:55]}  Kxg7 {[%clk 0:02:29]} 18. Qd4+ {[%clk 0:02:55]}  f6 {[%clk 0:02:25]} 19. b4 {[%clk 0:02:54]}  Rc7 {[%clk 0:02:18]} 20. Rc4 {[%clk 0:02:41]}  b5 {[%clk 0:02:10]} 21. Rxc7 {[%clk 0:02:21]}  Qxc7 {[%clk 0:02:11]} 22. Rd2 {[%clk 0:02:21]}  Rc8 {[%clk 0:02:10]} 23. Qb2 {[%clk 0:01:40]}  Qb6+ {[%clk 0:02:07]} 24. Kf1 {[%clk 0:01:40]}  Qe3 {[%clk 0:01:55]} 25. h3 {[%clk 0:01:06]}  Kf7 {[%clk 0:01:50]} 26. a4 {[%clk 0:01:05]}  f5 {[%clk 0:01:44]} 27. exf5 {[%clk 0:00:56]}  Bxf5 {[%clk 0:01:42]} 28. axb5 {[%clk 0:00:55]}  axb5 {[%clk 0:01:43]} 29. Bxb5 {[%clk 0:00:52]}  Rc3 {[%clk 0:01:26]} 30. Be2 {[%clk 0:00:27]}  Rb3 {[%clk 0:01:24]} 31. Qd4 {[%clk 0:00:27]}  Rb1+ {[%clk 0:00:34]} 32. Bd1 {[%clk 0:00:27]}  Qa3 {[%clk 0:00:19]} 33. g4 {[%clk 0:00:26]}  Bd7 {[%clk 0:00:18]} 34. Qh8 {[%clk 0:00:18]}  Qxf3+ {[%clk 0:00:14]} 35. Ke1 {[%clk 0:00:17]}  Qh1+ {[%clk 0:00:14]} 36. Ke2 {[%clk 0:00:17]}  Bb5+ {[%clk 0:00:13]} 37. Ke3 {[%clk 0:00:17]}  Rxd1 {[%clk 0:00:07]} 38. Qxh7+ {[%clk 0:00:17]}  Kf6 {[%clk 0:00:07]} 39. Rf2+ {[%clk 0:00:13]}  Ke5 {[%clk 0:00:04]} 40. Qxe7+ {[%clk 0:00:13]}  Kxd5 {[%clk 0:00:04]} 41. Qb7+ {[%clk 0:00:07]}  Kc4 {[%clk 0:00:03]} 42. Qc7+ {[%clk 0:00:03]}  Kb3 {[%clk 0:00:03]} 43. Qf7+ {[%clk 0:00:03]}  Kxb4 {[%clk 0:00:02]} 44. Rf3 {[%clk 0:00:04]}  Rd3+ {[%clk 0:00:01]} 45. Kf4 {[%clk 0:00:01]}  Rxf3+ {[%clk 0:00:02]} 0-1


[Site "https://www.chess.com"]

[Event "Titled Tuesday Blitz August 08 Early 2023"]
[White "Chudnovsky, Jacob"]
[Black "Jodorcovsky Werjivker, Paulo"]
[WhiteFideId "2010046"]
[BlackFideId "3700305"]
[WhiteElo "2391"]
[BlackElo "2196"]
[Result "1-0"]
[Round "9"]
[TimeControl "180+1"]
[Date "2023.08.08"]
[WhiteClock "0:00:45"]
[BlackClock "0:00:15"]
[Board "155"]

1. e4 {[%clk 0:03:00]}  c5 {[%clk 0:03:00]} 2. Nf3 {[%clk 0:03:00]}  Nc6 {[%clk 0:03:00]} 3. Nc3 {[%clk 0:03:00]}  e5 {[%clk 0:02:59]} 4. Bc4 {[%clk 0:02:59]}  Be7 {[%clk 0:02:59]} 5. d3 {[%clk 0:02:57]}  Nf6 {[%clk 0:02:59]} 6. Nd2 {[%clk 0:02:51]}  d6 {[%clk 0:02:58]} 7. Nf1 {[%clk 0:02:51]}  Nd7 {[%clk 0:02:48]} 8. Nd5 {[%clk 0:02:48]}  Nb6 {[%clk 0:02:47]} 9. Nxb6 {[%clk 0:02:46]}  Qxb6 {[%clk 0:02:40]} 10. Ne3 {[%clk 0:02:46]}  Qd8 {[%clk 0:02:36]} 11. Nd5 {[%clk 0:02:40]}  Be6 {[%clk 0:02:35]} 12. O-O {[%clk 0:02:39]}  Nb4 {[%clk 0:02:34]} 13. Nxb4 {[%clk 0:02:26]}  cxb4 {[%clk 0:02:25]} 14. Bb5+ {[%clk 0:02:25]}  Bd7 {[%clk 0:02:24]} 15. Bxd7+ {[%clk 0:02:25]}  Qxd7 {[%clk 0:02:24]} 16. Be3 {[%clk 0:02:22]}  O-O {[%clk 0:02:23]} 17. f4 {[%clk 0:02:22]}  exf4 {[%clk 0:02:14]} 18. Bxf4 {[%clk 0:02:17]}  d5 {[%clk 0:02:14]} 19. e5 {[%clk 0:02:13]}  d4 {[%clk 0:02:05]} 20. Qh5 {[%clk 0:02:08]}  Rac8 {[%clk 0:01:58]} 21. Rac1 {[%clk 0:01:56]}  Rc6 {[%clk 0:01:57]} 22. Rf3 {[%clk 0:01:55]}  Qe6 {[%clk 0:01:53]} 23. Rh3 {[%clk 0:01:41]}  Qg6 {[%clk 0:01:44]} 24. Qe2 {[%clk 0:01:40]}  Rfc8 {[%clk 0:01:43]} 25. Rg3 {[%clk 0:01:37]}  Qe6 {[%clk 0:01:40]} 26. Bg5 {[%clk 0:01:32]}  Bxg5 {[%clk 0:01:36]} 27. Rxg5 {[%clk 0:01:33]}  Qh6 {[%clk 0:01:35]} 28. Qg4 {[%clk 0:01:29]}  f6 {[%clk 0:01:33]} 29. exf6 {[%clk 0:01:25]}  Qxf6 {[%clk 0:01:32]} 30. Rf1 {[%clk 0:01:23]}  Qe7 {[%clk 0:01:29]} 31. Rd5 {[%clk 0:01:15]}  Rxc2 {[%clk 0:00:55]} 32. Rd7 {[%clk 0:01:08]}  Qe3+ {[%clk 0:00:51]} 33. Kh1 {[%clk 0:01:07]}  Qh6 {[%clk 0:00:34]} 34. Qxd4 {[%clk 0:00:52]}  R2c7 {[%clk 0:00:20]} 35. Qd5+ {[%clk 0:00:46]}  Kh8 {[%clk 0:00:15]} 36. Rd8+ {[%clk 0:00:45]} 1-0


[Site "https://www.chess.com"]